{"text_format":"1","workbook":"xlsx","n_sheets":1,"sheets":["Kfz Sonderausstattung"],"not_rendered":{"charts":0,"images":0,"macros":1,"external_links":0,"defined_names":2,"comments":0,"pivot_tables":0},"unopened":[],"bounds":{"document_bytes":16777216,"sheet_cells":100000,"rows_first":2000,"rows_last":500,"rows_between":2000,"halvings":0,"cell_chars":16384,"cell_head_chars":4096},"cells_cut":0,"cells_raw":0,"read":"whole","date_system":"1900"}

{"sheet":"Kfz Sonderausstattung","index":0,"n_rows":27,"n_cols":21,"rows_kept":27,"cut":false,"hidden":false,"merged":[[21,8,25,8],[12,2,12,5],[13,2,13,5],[0,0,0,6],[1,0,3,6],[6,3,6,6],[10,1,10,6],[12,7,12,9],[14,8,20,8],[25,1,25,6],[7,3,7,6],[19,2,19,5],[20,2,20,5],[23,2,23,5],[24,2,24,5],[21,2,21,5],[11,2,11,5],[22,2,22,5],[14,2,14,5],[15,2,15,5],[16,2,16,5],[17,2,17,5],[18,2,18,5]]}
["Mitversicherung und Berechnung einer Sonderausstattung für E@SY Web Sach",null,null,null,null,null,null,null,null,null,null,"Tarifvariante",null,null,"WKZ_Gruppen",null,null,null,null,{"$f":"IFERROR(VLOOKUP($C$7,$O1:$P1,2,FALSE),\"\")","v":""}]
["In unserem Angebotsrechner E@SY Web fehlt derzeit bei wenigen Wagniskennziffern eine Funktion zur Berechnung der Mehrprämie für Sonderausstattungen. Mit unserem Tool möchten wir Ihnen hiermit einen Workaround für den Einzel- und Fuhrparktarif anbieten. Bitte geben Sie für die Berechnung die benötigten Daten in folgende Felder ein.",null,null,null,null,null,null,null,null,{"$f":"VLOOKUP(C7,$L$2:$M$4,2,FALSE)","v":{"$error":"#N/A"}},{"$f":"VLOOKUP($J$2,$O$2:$P$4,2,FALSE)","v":{"$error":"#N/A"}},"compact",1,null,1,"PKW",null,null,"PKW","Alle","PKC"]
[null,null,null,null,null,null,null,null,null,null,null,"classic",2,null,2,"ALLE",null,null,"112 - Pkw","112 - Pkw","112 - PKW"]
[null,null,null,null,null,null,null,null,null,null,null,"comfort",3,null,3,"PKC",null,null,null,"003 - Kraftrad","003 - Kraftrad"]
[null,null,null,null,null,null,null,null,null,null,null,null,null,null,null,null,null,null,null,"127 - Campingfzg","127 - Campingfzg"]
[null,"Daten zum Angebot",null,null,null,null,null,null,null,null,null,null,null,null,null,null,null,null,null,"Sonstige"]
[null,"Tarifvariante der Kfz-Versicherung",null,"← Bitte eine Tarifvariante auswählen",null,null,null,null,null,null,null,null,null,null,null,null,null,null,null,{"$f":"IFERROR(VLOOKUP($C$7,$O6:$P6,2,FALSE),\"\")","v":""}]
[null,"Wagniskennziffer (WKZ)",null,"← Bitte eine WKZ auswählen",null,null,null,{"$f":"IF(AND($C$7=\"classic\",$C$8=\"\"),1,IF(AND($C$7=\"compact\",$C$8=\"\"),1,IF(AND($C$7=\"comfort\",$C$8=\"\"),1,\"\")))","v":""},null,null,null,null,null,null,null,null,null,null,null,{"$f":"IFERROR(VLOOKUP($C$7,$O7:$P7,2,FALSE),\"\")","v":""}]
[null,"Sonderausstattung prämienfrei mitversichert bis",{"$f":"IF(AND($C$7=\"compact\",$C$8=\"112 - Pkw\"),\"5.000,00 €\",IF(AND($C$7=\"classic\",$C$8=\"112 - Pkw\"),\"10.000,00 €\",IF(AND($C$7=\"classic\",$C$8=\"003 - Kraftrad\"),\"10.000,00 €\",IF(AND($C$7=\"classic\",$C$8=\"127 - Campingfzg\"),\"10.000,00 €\",IF(AND($C$7=\"classic\",$C$8=\"Sonstige\"),\"10.000,00 €\",IF(AND($C$7=\"comfort\",$C$8=\"112 - Pkw\"),\"20.000,00 €\",IF(AND($C$7=\"comfort\",$C$8=\"003 - Kraftrad\"),\"20.000,00 €\",IF(AND($C$7=\"comfort\",$C$8=\"127 - Campingfzg\"),\"20.000,00 €\",\"\"))))))))","v":""},{"$f":"IFERROR(IF(AND($C$7>0,$C$8>0),1,\"\"),\"\")","v":""},null,null,null,null,null,null,{"$f":"IF(OR($C$7=\"Classic\",$C$7=\"compact\",$C$7=\"comfort\"),1,0)","v":0},null,null,null,null,null,null,null,null,{"$f":"IFERROR(VLOOKUP($C$7,$O8:$P8,2,FALSE),\"\")","v":""}]
[null,null,null,null,null,null,null,null,null,null,{"$f":"IF(OR($C$8=\"112 - Pkw\",$C$8=\"003 - Kraftrad\",$C$8=\"127 - Campingfzg\",$C$8=\"Sonstige\"),1,0)","v":0}]
[null,{"$f":"CONCATENATE(\"Berechnung der Sonderausstattung in »\",C7,\"«\")","v":"Berechnung der Sonderausstattung in »«"},null,null,null,null,null,null,null,null,{"$f":"IF($C$9=\"\",0,1)","v":0},{"$f":"IF(AND($G$15=\"\",$G$16=\"\",$G$17=\"\",$G$18=\"\",$G$19=\"\",$G$20=\"\",$G$21=\"\"),0,1)","v":0}]
[null,"Angaben zum Angebot","Details",null,null,null,"Neuwert in €",null,{"$f":"IF(AND($C$9=\"5.000,00 €\",$G$13>0),1,(IF(AND($C$9=\"10.000,00 €\",$G$13>0),1,(IF(AND($C$9=\"20.000,00 €\",$G$13>0),1,\"\")))))","v":""},null,{"$f":"IF(AND($G$13=\"\",$K$9=1,$K$10=1,$K$11=1),0,1)","v":1},{"$f":"IF(AND($K$9=1,$K$10=1,$K$11=1,$K$12=1,$L$11=0),1,0)","v":0}]
[null,"Gesamtneuwert des Fahrzeugs","Tipp: Listenpreis + Neuwert der (Sonder-)Ausstattung oder s. Rechnung bei Neufahrzeugen inkl. Sonderausstattung",null,null,null,null,"← Bitte einen Fahrzeugneuwert angeben"]
[null,"Abhängig vom Gesamtneuwert mitversicherte Teile:","Bitte Beschreibungen zur Sonderausstattung ergänzen:",null,null,null,"Bitte Werte ergänzen:"]
[null,"Radio- und sonstige Audiosysteme",null,null,null,null,null,"←","Bitte hier die Sonderausstattungen eingeben",{"$f":"IF(AND(I12=1,G15=\"\",G16=\"\",G17=\"\",G18=\"\",G19=\"\",G20=\"\",G21=\"\"),1,0)","v":0}]
[null,"Video- oder technische Kommunikations- und Leitsysteme (z. B. fest eingebaute Navigationssysteme)",null,null,null,null,null,"←"]
[null,"Tuning / Zugelassene Veränderungen",null,null,null,null,null,"←"]
[null,"individuelle Sonderlackierungen und -beschriftungen sowie besondere Oberflächenbehandlungen",null,null,null,null,null,"←"]
[null,"Beiwagen und Verkleidungen bei Kraft-, Leichtkrafträdern, Trikes und Quads",null,null,null,null,null,"←"]
[null,"Spezialaufbauten (z. B. Kran-, Tank-, Silo-, Kühl- und Thermoaufbauten)",null,null,null,null,null,"←"]
[null,"Spezialeinrichtungen (z. B. für Werkstattwagen, Messfahrzeuge, Krankenwagen)",null,null,null,null,null,"←"]
[null,"Summe der Sonderausstattungen",null,null,null,null,{"$f":"SUM($G$15:$G$21)","v":0},"←","Ungültig: Wert der Sonderaus-stattungen ist gleich oder größer als der Gesamtneuwert des Fahrzeugs. Bitte Eingaben überprüfen.",{"$f":"IF(AND($G$15=\"\",$G$16=\"\",$G$17=\"\",$G$18=\"\",$G$19=\"\",$G$20=\"\",$G$21=\"\"),1,\"\")","v":1}]
[null,"Freibetrag gemäß Tarifvariante",null,null,null,null,{"$f":"$C$9","v":""}]
[null,"Mehrwert (= Summe der Sonderaustattungen - Freibetrag):",null,null,null,null,{"$f":"IFERROR(IF($G$22-$G$23<0,\"\",($G$22-G23)),\"\")","v":""}]
[null,"Ergebnis"," Bitte folgenden Zuschlag in % in der Kasko in E@SY Web Sach ansetzen →",null,null,null,{"$f":"IFERROR(ROUNDUP(IFERROR(IF(($G$24/($G$13-$G$22))<0,\"\",$G$24/($G$13-$G$22)),\"0%\"),2),\"Fehler\")","v":0}]
[null,{"$f":"IFERROR(IF($G$25=0,\"Die Sonderausstattung liegt mit ihrem Wert unter dem Freibetrag. Kein Zuschlag erforderlich.\",CONCATENATE(\"Bitte das Ergebnis \",$G$25*100,\"% als Zuschlag in der Kaskoversicherung in E@SY Web angeben und berechnen.\")),\"Ungültige Angaben. Bitte kontrollieren Sie Ihre Eingaben.\")","v":"Die Sonderausstattung liegt mit ihrem Wert unter dem Freibetrag. Kein Zuschlag erforderlich."}]
[null,null,null,null,null,null,null,null,{"$f":"IF(AND($G$22>0,OR($G$22=$G$13,$G$22>$G$13)),1,\"\")","v":""}]